fUSD/lending_fUSD_20260118
["ID","MTS","AMOUNT","RATE_DAILY","PERIOD"]
[402566207,1768708279513,-151.0,0.00017808,2]
[402566208,1768708279522,-500.0,0.00017808,2]
[402566209,1768708279532,-368.223258,0.00017808,2]
[402566210,1768708279543,-368.223258,0.00017808,2]
[402566211,1768708279552,-368.223258,0.00017808,2]
[402566212,1768708279561,-500.0,0.00017808,2]
[402566213,1768708279571,-368.223258,0.00017808,2]
[402566214,1768708279579,-500.0,0.00017808,2]
[402566215,1768708279589,-256.9485,0.00017808,2]
[402566216,1768708279599,-256.9485,0.00017808,2]
[402566217,1768708279609,-500.0,0.00017808,2]
[402566218,1768708279618,-500.0,0.00017808,2]
[402566219,1768708279626,-500.0,0.00017808,2]
[402566220,1768708279635,-256.9485,0.00017808,2]
[402566221,1768708279644,-256.9485,0.00017808,2]
[402566222,1768708279653,-537.9,0.00017808,2]
[402566223,1768708279663,-500.0,0.00017808,2]
[402566224,1768708279672,-500.0,0.00017808,2]
[402566225,1768708279680,-593.18,0.00017808,2]
[402566226,1768708279689,-500.0,0.00017808,2]
[402566227,1768708279698,-703.85,0.00017808,2]
[402566228,1768708279707,-500.0,0.00017808,2]
[402566229,1768708279717,-500.0,0.00017808,2]
[402566230,1768708279726,-500.0,0.00017808,2]
[402566231,1768708279735,-500.0,0.00017808,2]
[402566232,1768708279744,-641.62,0.00017808,2]
[402566233,1768708279754,-500.0,0.00017808,2]
[402566234,1768708279763,-6098.65,0.00017808,2]
[402566235,1768708279773,-557.94,0.00017808,2]
[402566236,1768708279782,-500.0,0.00017808,2]
[402566237,1768708279791,-500.0,0.00017808,2]
[402566238,1768708279801,-223.66308814,0.00017808,2]
[402566239,1768708279810,-500.0,0.00017808,2]
[402566240,1768708279820,-500.0,0.00017808,2]
[402566241,1768708279829,-500.0,0.00017808,2]
[402566242,1768708279838,-500.0,0.00017808,2]
[402566243,1768708279847,-500.0,0.00017808,2]
[402566244,1768708279857,-580.75,0.00017808,2]
[402566245,1768708279866,-500.0,0.00017808,2]
[402566246,1768708279878,-500.0,0.00017808,2]
[402566247,1768708279887,-500.0,0.00017808,2]
[402566248,1768708279897,-500.0,0.00017808,2]
[402566249,1768708279905,-500.0,0.00017808,2]
[402566250,1768708279912,-500.0,0.00017808,2]
[402566251,1768708279920,-500.0,0.00017808,2]
[402566252,1768708279927,-500.0,0.00017808,2]
[402566253,1768708279933,-500.0,0.00017808,2]
[402566254,1768708279941,-500.0,0.00017808,2]
[402566255,1768708279951,-151.0,0.00017808,2]
[402566256,1768708279959,-550.86,0.00017808,2]
[402566257,1768708279966,-151.0,0.00017808,2]
[402566258,1768708279974,-151.0,0.00017808,2]
[402566259,1768708279981,-503.98,0.00017808,2]
[402566260,1768708279988,-656.176966,0.00017808,2]
[402566261,1768708279996,-656.176966,0.00017808,2]
[402566262,1768708280003,-645.81,0.00017808,2]
[402566263,1768708280012,-656.176966,0.00017808,2]
[402566264,1768708280022,-500.0,0.00017808,2]
[402566265,1768708280031,-2341.182483,0.00017808,2]
[402566266,1768708280040,-228.89608167,0.00017808,2]
[402566267,1768708280049,-656.176966,0.00017808,2]
[402566268,1768708280057,-500.0,0.00017808,2]
[402566269,1768708280066,-1287.975644,0.00017808,2]
[402566270,1768708280075,-2341.182483,0.00017808,2]
[402566271,1768708280083,-517.986361,0.00017808,2]
[402566272,1768708280093,-1287.975644,0.00017808,2]
[402566273,1768708280101,-2341.182483,0.00017808,2]
[402566274,1768708280110,-351.51063,0.00017808,2]
[402566275,1768708280120,-517.986361,0.00017808,2]
[402566276,1768708280129,-479.58200682,0.00017808,2]
[402566277,1768708280138,-1287.975644,0.00017808,2]
[402566278,1768708280147,-2341.182483,0.00017808,2]
[402566279,1768708280155,-351.51063,0.00017808,2]
[402566280,1768708280165,-517.986361,0.00017808,2]
[402566281,1768708280175,-1287.975644,0.00017808,2]
[402566282,1768708280184,-500.0,0.00017808,2]
[402566283,1768708280193,-351.51063,0.00017808,2]
[402566284,1768708280202,-500.0,0.00017808,2]
[402566285,1768708280212,-500.0,0.00017808,2]
[402566286,1768708280222,-517.986361,0.00017808,2]
[402566287,1768708280232,-556.116488,0.00017808,2]
[402566288,1768708280241,-630.31874,0.00017808,2]
[402566289,1768708280250,-351.51063,0.00017808,2]
[402566290,1768708280259,-500.0,0.00017808,2]
[402566291,1768708280268,-556.116488,0.00017808,2]
[402566292,1768708280277,-630.31874,0.00017808,2]
[402566293,1768708280286,-616.724566,0.00017808,2]
[402566294,1768708280295,-261.037363,0.00017808,2]
[402566295,1768708280304,-500.0,0.00017808,2]
[402566296,1768708280313,-556.116488,0.00017808,2]
[402566297,1768708280322,-630.31874,0.00017808,2]
[402566298,1768708280331,-616.724566,0.00017808,2]
[402566299,1768708280339,-3584.532616,0.00017808,2]
[402566300,1768708280357,-261.037363,0.00017808,2]
[402566301,1768708280369,-556.116488,0.00017808,2]
[402566302,1768708280378,-630.31874,0.00017808,2]
[402566303,1768708280388,-616.724566,0.00017808,2]
[402566304,1768708280397,-500.0,0.00017808,2]
[402566305,1768708280407,-3584.532616,0.00017808,2]
[402566306,1768708280416,-261.037363,0.00017808,2]
[402566307,1768708280426,-422.657035,0.00017808,2]
[402566308,1768708280435,-487.951994,0.00017808,2]
[402566309,1768708280445,-616.724566,0.00017808,2]
[402566310,1768708280454,-500.0,0.00017808,2]
[402566311,1768708280464,-500.0,0.00017808,2]
[402566312,1768708280474,-422.657035,0.00017808,2]
[402566313,1768708280483,-3584.532616,0.00017808,2]
[402566314,1768708280492,-500.0,0.00017808,2]
[402566315,1768708280501,-487.951994,0.00017808,2]
[402566316,1768708280510,-559.58,0.00017808,2]
[402566317,1768708280519,-261.037363,0.00017808,2]
[402566318,1768708280528,-359.062487,0.00017808,2]
[402566319,1768708280537,-500.0,0.00017808,2]
[402566320,1768708280546,-422.657035,0.00017808,2]
[402566321,1768708280555,-3584.532616,0.00017808,2]
[402566322,1768708280564,-487.951994,0.00017808,2]
[402566323,1768708280573,-359.062487,0.00017808,2]
[402566324,1768708280582,-422.657035,0.00017808,2]
[402566325,1768708280591,-487.951994,0.00017808,2]
[402566326,1768708280601,-500.0,0.00017808,2]
[402566327,1768708280610,-359.062487,0.00017808,2]
[402566328,1768708280619,-500.0,0.00017808,2]
[402566329,1768708280628,-359.062487,0.00017808,2]
[402566330,1768708280638,-151.0,0.00017808,2]
[402566331,1768708280647,-644.693799,0.00017808,2]
[402566332,1768708280656,-500.0,0.00017808,2]
[402566333,1768708280665,-644.693799,0.00017808,2]
[402566334,1768708280674,-500.0,0.00017808,2]
[402566335,1768708280684,-500.0,0.00017808,2]
[402566336,1768708280692,-500.0,0.00017808,2]
[402566337,1768708280701,-644.693799,0.00017808,2]
[402566338,1768708280711,-644.693799,0.00017808,2]
[402566339,1768708280720,-500.0,0.00017808,2]
[402566340,1768708280730,-500.0,0.00017808,2]
[402566341,1768708280739,-500.0,0.00017808,2]
[402566342,1768708280749,-500.0,0.00017808,2]
[402566343,1768708280926,-500.0,0.00017808,2]
[402566344,1768708280949,-500.0,0.00017808,2]
[402566345,1768708280959,-500.0,0.00017808,2]
[402566346,1768708280969,-500.0,0.00017808,2]
[402566347,1768708280978,-566.37,0.00017808,2]
[402566348,1768708280988,-151.0,0.00017808,2]
[402566349,1768708280997,-151.0,0.00017808,2]
[402566350,1768708281007,-470.8141881,0.00017808,2]
[402566351,1768708281017,-578.44,0.00017808,2]
[402566352,1768708281027,-561.4,0.00017808,2]
[402566353,1768708281037,-742.52,0.00017808,2]
[402566354,1768708281047,-597.55,0.00017808,2]
[402566355,1768708281057,-500.0,0.00017808,2]
[402566356,1768708281068,-500.0,0.00017808,2]
[402566357,1768708281079,-500.0,0.00017808,2]
[402566358,1768708281089,-500.0,0.00017808,2]
[402566359,1768708281099,-500.0,0.00017808,2]
[402566360,1768708281109,-500.0,0.00017808,2]
[402566361,1768708281118,-151.0,0.00017808,2]
[402566362,1768708281128,-151.0,0.00017808,2]
[402566363,1768708281137,-605.09,0.00017808,2]
[402566364,1768708281147,-151.0,0.00017808,2]
[402566365,1768708281156,-151.0,0.00017808,2]
[402566366,1768708281167,-151.0,0.00017808,2]
[402566367,1768708281177,-744.13,0.00017808,2]
[402566368,1768708281186,-151.0,0.00017808,2]
[402566369,1768708281196,-155.835239,0.00017808,2]
[402566370,1768708281206,-507.32,0.00017808,2]
[402566371,1768708281216,-500.0,0.00017808,2]
[402566372,1768708281226,-738.84,0.00017808,2]
[402566373,1768708281236,-500.0,0.00017808,2]
[402566374,1768708281246,-545.61,0.00017808,2]
[402566375,1768708281256,-500.0,0.00017808,2]
[402566376,1768708281266,-500.0,0.00017808,2]
[402566377,1768708281273,-500.0,0.00017808,2]
[402566378,1768708281280,-500.0,0.00017808,2]
[402566379,1768708281288,-500.0,0.00017808,2]
[402566380,1768708281295,-500.0,0.00017808,2]
[402566381,1768708281302,-500.0,0.00017808,2]
[402566382,1768708281310,-500.0,0.00017808,2]
[402566383,1768708281319,-519.7,0.00017808,2]
[402566384,1768708281336,-500.0,0.00017808,2]
[402566385,1768708281346,-521.14,0.00017808,2]
[402566386,1768708281361,-500.0,0.00017808,2]
[402566387,1768708281369,-500.0,0.00017808,2]
[402566388,1768708281376,-552.19,0.00017808,2]
[402566389,1768708281383,-500.0,0.00017808,2]
[402566390,1768708281391,-537.83,0.00017808,2]
[402566391,1768708281399,-418.60500044,0.00017808,2]
[402566392,1768708281406,-500.0,0.00017808,2]
[402566393,1768708281413,-500.0,0.00017808,2]
[402566394,1768708281421,-500.0,0.00017808,2]
[402566395,1768708281429,-500.0,0.00017808,2]
[402566396,1768708281437,-569.72,0.00017808,2]
[402566397,1768708281444,-500.0,0.00017808,2]
[402566398,1768708281452,-500.0,0.00017808,2]
[402566399,1768708281460,-500.0,0.00017808,2]
[402566400,1768708281470,-500.0,0.00017808,2]
[402566401,1768708281480,-500.0,0.00017808,2]
[402566402,1768708281490,-250.01,0.00017808,2]
[402566403,1768708281500,-1266.07,0.00017808,2]
[402566404,1768708281510,-500.0,0.00017808,2]
[402566405,1768708281520,-745.07,0.00017808,2]
[402566406,1768708281529,-500.0,0.00017808,2]
[402566407,1768708281539,-500.0,0.00017808,2]
[402566408,1768708281549,-500.0,0.00017808,2]
[402566409,1768708281559,-574.12,0.00017808,2]
[402566410,1768708281570,-500.0,0.00017808,2]
[402566411,1768708281580,-502.35,0.00017808,2]
[402566412,1768708281590,-500.0,0.00017808,2]
[402566413,1768708281600,-500.0,0.00017808,2]
[402566414,1768708281610,-500.0,0.00017808,2]
[402566415,1768708281620,-500.0,0.00017808,2]
[402566416,1768708281630,-500.0,0.00017808,2]
[402566417,1768708281640,-510.21,0.00017808,2]
[402566418,1768708281648,-615.02,0.00017808,2]
[402566419,1768708281655,-500.0,0.00017808,2]
[402566420,1768708281663,-500.0,0.00017808,2]
[402566421,1768708281673,-1000.0,0.00017808,2]
[402566422,1768708281683,-199.6649,0.0001782,2]
[402566423,1768708281693,-199.66491,0.0001782,2]
[402566424,1768708281703,-2935.0,0.00017827,2]
[402566425,1768708281713,-4001.0,0.00017832,2]
[402566426,1768708281723,-334.5472959,0.00017832,2]
[402566427,1768708281733,-152.18045294,0.00017834,2]
[402566428,1768708281743,-3487.66936523,0.00017841,2]
[402566429,1768708281753,-6152.66216692,0.00017841,2]
[402566430,1768708281764,-9204.01463516,0.00017841,2]
[402566431,1768708281774,-12453.3585,0.00017841,2]
[402566432,1768708281783,-1000.0,0.00017846,2]
[402566433,1768708281793,-1030.88518235,0.00017851,2]
[402566434,1768708281803,-200.0,0.00017856,2]
[402566435,1768708281812,-150.0,0.00017862,2]
[402566436,1768708281822,-500.0,0.00017862,2]
[402566437,1768708281832,-300.63139029,0.00017862,2]
[402566438,1768708281842,-1650.0,0.00017863,2]
[402566439,1768708281851,-500.0,0.00017863,2]
[402566440,1768708281861,-151.0,0.00017863,2]
[402566441,1768708281872,-186.722808,0.00017863,2]
[402566442,1768708281886,-151.0,0.00017863,2]
[402566443,1768708281896,-151.0,0.00017863,2]
[402566444,1768708281906,-151.519296,0.00017863,2]
[402566445,1768708281919,-151.519296,0.00017863,2]
[402566446,1768708281929,-151.519296,0.00017863,2]
[402566447,1768708281939,-151.519296,0.00017863,2]
[402566448,1768708281950,-151.0,0.00017863,2]
[402566449,1768708281959,-151.0,0.00017863,2]
[402566450,1768708281969,-235.261082,0.00017863,2]
[402566451,1768708281980,-150.06028841,0.00017863,2]
[402566452,1768708281989,-1500.0,0.00017868,2]
[402566453,1768708281999,-1500.0,0.00017868,2]
[402566454,1768708282009,-1500.0,0.00017868,2]
[402566455,1768708282020,-1500.0,0.00017868,2]
[402566456,1768708282030,-150.0,0.00017877,2]
[402566457,1768708282040,-181.98921658,0.00017884,2]
[402566458,1768708282049,-953.4,0.00017892,2]
[402566459,1768708282059,-343.98678545,0.000179,2]
[402566460,1768708282068,-1000.0,0.000179,2]
[402566461,1768708282078,-2146.01077351,0.000179,2]
[402566462,1768708282089,-238.07573119,0.000179,2]
[402566463,1768708282099,-1200.0,0.000179,6]
[402566464,1768708282108,-2498.79772585,0.000179,2]
[402566465,1768708282118,-4175.49898885,0.000179,2]
[402566466,1768708282128,-3032.55770297,0.000179,2]
[402566467,1768708282139,-7118.58386222,0.000179,2]
[402566468,1768708282150,-2351.0,0.00017905,2]
[402566469,1768708282160,-1000.0,0.0001791,2]
[402566470,1768708282170,-429.07443789,0.0001791,2]
[402566471,1768708282181,-1000.0,0.00017911,2]
[402566472,1768708282191,-150.0,0.00017917,2]
[402566473,1768708282200,-500.0,0.00017917,2]
[402566474,1768708282211,-1650.0,0.00017918,2]
[402566475,1768708282221,-500.0,0.00017918,2]
[402566476,1768708282231,-150.0,0.00017936,2]
[402566477,1768708282241,-202.06832046,0.00017972,2]
[402566478,1768708282251,-1650.0,0.00017972,2]
[402566479,1768708282261,-500.0,0.00017972,2]
[402566480,1768708282272,-161.0,0.00017973,2]
[402566481,1768708282282,-164.02647875,0.00017973,2]
[402566482,1768708282292,-500.0,0.00017973,2]
[402566483,1768708282302,-150.0,0.00017973,2]
[402566484,1768708282312,-1000.0,0.00017985,2]
[402566485,1768708282322,-619.5541809,0.0001799,2]
[402566486,1768708282332,-619.5541809,0.0001799,2]
[402566487,1768708282342,-15329.2453114,0.00017992,2]
[402566488,1768708282352,-2545.4055624,0.00017992,2]
[402566489,1768708282361,-3163.4442393,0.00017992,2]
[402566490,1768708282372,-151.0,0.00017992,2]
[402566491,1768708282382,-151.0,0.00017992,2]
[402566492,1768708282393,-151.0,0.00017992,2]
[402566493,1768708282403,-229.629716,0.00017992,2]
[402566494,1768708282412,-151.0,0.00017992,2]
[402566495,1768708282422,-151.0,0.00017992,2]
[402566496,1768708282432,-265.277891,0.00017992,2]
[402566497,1768708282442,-499.8364094,0.00017994,2]
[402566498,1768708282452,-292.39179801,0.00018,2]
[402566499,1768708282461,-162.00243183,0.00018,2]
[402566500,1768708282471,-226.58639529,0.00018,2]
[402566501,1768708282481,-258.83027146,0.00018,2]
[402566502,1768708282490,-220.83708674,0.00018,2]
[402566503,1768708282500,-157.30887077,0.00018,2]
[402566504,1768708282509,-192.99771562,0.00018,2]
[402566505,1768708282519,-410718.29301306,0.00018,2]
[402566506,1768708282529,-558831.21422858,0.00018,2]
[402566507,1768708282539,-300.0,0.00018,2]
[402566508,1768708282548,-928437.52491024,0.00018,2]
[402566509,1768708283622,-1425.78080434,0.00016833,2]
[402566510,1768708283634,-1371.50509542,0.00016833,2]
[402566511,1768708283674,-1141.95986912,0.00016833,2]
[402566512,1768708283696,-1378.20647161,0.00016833,2]
[402566513,1768708283706,-500.0,0.0001726,2]
[402566514,1768708283715,-215.381558,0.0001726,2]
[402566515,1768708283725,-353.355615,0.0001726,2]
[402566516,1768708283735,-151.0,0.0001726,2]
[402566517,1768708283744,-215.381558,0.0001726,2]
[402566518,1768708283754,-500.0,0.00017534,2]
[402566519,1768708283765,-215.381558,0.00017804,2]
[402566520,1768708283775,-215.381558,0.00017804,2]
[402566521,1768708283784,-353.355615,0.00017804,2]
[402566522,1768708283794,-151.0,0.00017804,2]
[402566523,1768708283805,-500.0,0.00017808,2]
[402566524,1768708283814,-8951.55606639,0.00018,2]
[402566525,1768708283826,-3198.77275587,0.00018,2]
[402566526,1768708283842,-1220.52685329,0.00018,2]
[402566527,1768708283939,-17.24991489,0.00018,2]
[402566528,1768708284674,-662.88,0.00016082,2]
[402566529,1768708284684,-500.0,0.00016438,2]
[402566530,1768708284694,-163.45065827,0.00016438,2]
[402566531,1768708284797,-336.54934173,0.00016438,2]
[402566532,1768708284808,-500.0,0.00016712,2]
[402566533,1768708284818,-500.0,0.00016986,2]
[402566534,1768708284828,-267.55940633,0.00017124,2]
[402566794,1768708810040,161.0,0.000273,120]
[402567076,1768709079237,158.39,0.00011228,2]
[402567099,1768709175288,-324.08,0.00014026,2]
[402567100,1768709175309,-87.7010816,0.00014055,2]
[402567101,1768709218706,150.0,0.00027397,120]
[402567102,1768709229983,544.97,0.00013259,2]
[402567103,1768709310338,-260.14946749,0.00013968,2]
[402567104,1768709385275,-160.03648968,0.00013747,2]
[402567105,1768709386658,-264.33267322,0.00013747,2]
[402567107,1768709432178,-500.0,0.00013715,2]
[402567108,1768709432188,-162.6308371,0.00013747,2]
[402567109,1768709432200,-85.8942165,0.00013968,2]
[402567110,1768709432213,-653.95631601,0.00013968,2]
[402567111,1768709432223,-300.0,0.00013985,2]
[402567112,1768709432235,-195.0,0.00014003,2]
[402567114,1768709432244,-600.0,0.00014003,2]
[402567115,1768709432254,-233.98301714,0.00014029,2]
[402567116,1768709432263,-232.54779984,0.00014037,2]
[402567117,1768709432275,-512.2989184,0.00014055,2]
[402567118,1768709432284,-843.74548249,0.00014084,2]
[402567119,1768709432357,-2396.25451751,0.00014084,2]
[402567120,1768709432366,-1200.0,0.00014094,2]
[402567121,1768709432375,-1069.48899373,0.00014095,2]
[402567122,1768709432385,-300.0,0.00014245,2]
[402567123,1768709432394,-420.62026613,0.00014245,2]
[402567124,1768709432404,-150.0,0.00014246,2]
[402567125,1768709432413,-300.0,0.00014246,2]
[402567126,1768709432423,-3049.82340514,0.00014247,2]
[402567127,1768709432442,-1351.14592439,0.00014247,2]
[402567128,1768709432453,-1283.74605043,0.00014247,2]
[402567129,1768709432505,-29376.12153174,0.00014247,2]
[402567130,1768709432516,-16848.74843296,0.00014247,2]
[402567131,1768709432528,-703.96192003,0.00014247,2]
[402567143,1768709438299,-500.0,0.00014246,2]
[402567144,1768709438310,-199.98280806,0.00014246,2]
[402567145,1768709438320,-235.46229453,0.00014246,2]
[402567146,1768709438330,-283.92476324,0.00014246,2]
[402567147,1768709438343,-296.96037811,0.00014246,2]
[402567148,1768709438354,-500.0,0.00014246,2]
[402567149,1768709438364,-168.7555581,0.00014246,2]
[402567150,1768709438374,-500.0,0.00014246,2]
[402567151,1768709438384,-556.45764828,0.00014246,2]
[402567152,1768709438394,-500.0,0.00014246,2]
[402567153,1768709438403,-501.87734056,0.00014246,2]
[402567154,1768709438413,-500.0,0.00014246,2]
[402567155,1768709438423,-500.0,0.00014246,2]
[402567156,1768709438432,-500.0,0.00014246,2]
[402567157,1768709438442,-500.0,0.00014246,2]
[402567158,1768709438452,-500.0,0.00014246,2]
[402567159,1768709438461,-500.0,0.00014246,2]
[402567160,1768709438471,-500.0,0.00014246,2]
[402567161,1768709438481,-500.0,0.00014246,2]
[402567162,1768709438491,-448.24670966,0.00014246,2]
[402567163,1768709438513,-51.75329034,0.00014246,2]
[402567164,1768709438523,-500.0,0.00014246,2]
[402567165,1768709438532,-500.0,0.00014246,2]
[402567166,1768709438542,-500.0,0.00014246,2]
[402567167,1768709438552,-500.0,0.00014246,2]
[402567168,1768709438561,-500.0,0.00014246,2]
[402567169,1768709438571,-500.0,0.00014246,2]
[402567170,1768709438580,-500.0,0.00014246,2]
[402567171,1768709438590,-500.0,0.00014246,2]
[402567172,1768709438599,-500.0,0.00014246,2]
[402567173,1768709438609,-558.42346105,0.00014246,2]
[402567174,1768709438619,-3905.68300507,0.00014247,2]
[402567176,1768709438631,-4619.82097281,0.00014247,2]
[402567178,1768709438642,-6888.636184,0.00014247,2]
[402567180,1768709438652,-3729.44527212,0.00014247,2]
[402567182,1768709438663,-540.01220046,0.00014247,2]
[402567184,1768709438675,-72352.41510085,0.00014247,2]
[402567186,1768709438684,-232.54779983,0.00014364,2]
[402567188,1768709438694,-328.05949045,0.00014434,2]
[402567190,1768709438708,-258.94050955,0.00014434,2]
[402567192,1768709438719,-662.88,0.000145,2]
[402567194,1768709438728,-966.1858012,0.00014589,2]
[402567196,1768709438738,-500.0,0.00014597,2]
[402567198,1768709438747,-7462.03007565,0.00014598,2]
[402567201,1768709438764,-822.627884,0.00014598,2]
[402567203,1768709438777,-3143.16561874,0.00014598,2]
[402567347,1768709440510,-886.52454978,0.00014598,2]
[402567355,1768709440581,-951.055,0.00014598,2]
[402567361,1768709440621,-986734.59687183,0.00014598,2]
[402567363,1768709440632,-965.27285249,0.00014689,2]
[402567365,1768709440643,-232.54779983,0.0001469,2]
[402567367,1768709440654,-9999.99,0.00014699,2]
[402567370,1768709440665,-500.0,0.00014699,2]
[402567372,1768709440676,-500.0,0.00014699,2]
[402567374,1768709440689,-500.0,0.00014699,2]
[402567376,1768709440700,-500.0,0.00014699,2]
[402567379,1768709440711,-500.0,0.00014699,2]
[402567381,1768709440723,-500.0,0.00014699,2]
[402567383,1768709440734,-667.0442,0.00014699,2]
[402567385,1768709440744,-5268.17964723,0.00014699,2]
[402567387,1768709440755,-188.5638,0.00014699,2]
[402567390,1768709440766,-525.2305,0.00014699,2]
[402567392,1768709440778,-27485.22779036,0.00014699,2]
[402567394,1768709440789,-21658.35636411,0.00014699,2]
[402567396,1768709440800,-150.99,0.00014788,2]
[402567398,1768709440810,-1000.938,0.00014789,2]
[402567401,1768709440821,-179.225,0.00014789,2]
[402567403,1768709440832,-500.0,0.0001479,2]
[402567405,1768709440842,-500.0,0.0001479,2]
[402567407,1768709440853,-500.0,0.0001479,2]
[402567409,1768709440865,-500.0,0.0001479,2]
[402567412,1768709440876,-500.0,0.0001479,2]
[402567414,1768709440886,-500.0,0.0001479,2]
[402567416,1768709440897,-500.0,0.0001479,2]
[402567418,1768709440908,-500.0,0.0001479,2]
[402567420,1768709440919,-500.0,0.0001479,2]
[402567422,1768709440930,-500.0,0.0001479,2]
[402567425,1768709440942,-500.0,0.0001479,2]
[402567427,1768709440953,-500.0,0.0001479,2]
[402567429,1768709440964,-500.0,0.0001479,2]
[402567431,1768709440975,-500.0,0.0001479,2]
[402567433,1768709440985,-500.0,0.0001479,2]
[402567435,1768709440997,-500.0,0.0001479,2]
[402567438,1768709441010,-500.0,0.0001479,2]
[402567440,1768709441022,-500.0,0.0001479,2]
[402567442,1768709441032,-500.0,0.0001479,2]
[402567444,1768709441043,-500.0,0.0001479,2]
[402567446,1768709441054,-500.0,0.0001479,2]
[402567448,1768709441065,-500.0,0.0001479,2]
[402567450,1768709441075,-200.0,0.0001479,2]
[402567453,1768709441086,-200.0,0.0001479,2]
[402567455,1768709441097,-151.0,0.0001479,2]
[402567457,1768709441107,-216.96472332,0.0001479,2]
[402567459,1768709441117,-151.0,0.0001479,2]
[402567461,1768709441128,-151.0,0.0001479,2]
[402567463,1768709441138,-151.0,0.0001479,2]
[402567466,1768709441149,-151.0,0.0001479,2]
[402567468,1768709441160,-151.0,0.0001479,2]
[402567470,1768709441170,-151.0,0.0001479,2]
[402567472,1768709441181,-151.0,0.0001479,2]
[402567474,1768709441192,-151.0,0.0001479,2]
[402567476,1768709441206,-151.0,0.0001479,2]
[402567478,1768709441217,-151.0,0.0001479,2]
[402567480,1768709441228,-500.0,0.0001479,2]
[402567483,1768709441238,-292.90483444,0.00014791,2]
[402567485,1768709441250,-500.0,0.00014798,2]
[402567487,1768709441260,-500.0,0.00014798,2]
[402567489,1768709441271,-503.1843055,0.00014798,2]
[402567491,1768709441282,-290.03433383,0.00014798,2]
[402567493,1768709441293,-525.87218236,0.00014798,2]
[402567495,1768709441303,-500.0,0.00014798,2]
[402567497,1768709441314,-500.0,0.00014798,2]
[402567500,1768709441325,-500.0,0.00014798,2]
[402567502,1768709441335,-500.0,0.00014798,2]
[402567504,1768709441346,-500.0,0.00014798,2]
[402567506,1768709441356,-500.0,0.00014798,2]
[402567508,1768709441367,-500.0,0.00014798,2]
[402567510,1768709441378,-500.0,0.00014798,2]
[402567512,1768709441389,-500.0,0.00014798,2]
[402567514,1768709441399,-500.0,0.00014798,2]
[402567517,1768709441409,-500.0,0.00014798,2]
[402567519,1768709441419,-500.0,0.00014798,2]
[402567521,1768709441430,-263.09929564,0.00014798,2]
[402567523,1768709441440,-519.99855028,0.00014798,2]
[402567525,1768709441450,-500.0,0.00014798,2]
[402567527,1768709441460,-509.37476542,0.00014798,2]
[402567529,1768709441471,-500.0,0.00014798,2]
[402567531,1768709441481,-592.82762265,0.00014798,2]
[402567534,1768709441491,-528.10956924,0.00014798,2]
[402567536,1768709441501,-500.0,0.00014798,2]
[402567538,1768709441511,-500.0,0.00014798,2]
[402567540,1768709441521,-500.0,0.00014798,2]
[402567542,1768709441531,-500.0,0.00014798,2]
[402567544,1768709441542,-500.0,0.00014798,2]
[402567546,1768709441552,-516.37890973,0.00014798,2]
[402567548,1768709441561,-500.0,0.00014798,2]
[402567550,1768709441571,-500.0,0.00014798,2]
[402567553,1768709441582,-500.0,0.00014798,2]
[402567555,1768709441592,-500.0,0.00014798,2]